[Event "Kupreichik Memorial Open 2018"]
[Site "Minsk"]
[Date "2018.06.22"]
[Round "6"]
[White "Badelka, Olga"]
[Black "Meshkov, Yuri A"]
[Result "0-1"]
[ECO "A42"]
[WhiteElo "2153"]
[BlackElo "2375"]
[Annotator "NA"]
[PlyCount "110"]
[EventDate "2018.06.21"]
[EventCountry "BLR"]
[SourceTitle "playchess.com"]
[Source "ChessBase"]
[SourceQuality "1"]
[TimeControl "900+10"]

1. c4 {[%emt 0:00:00]} g6 {[%emt 0:00:06]} 2. d4 {[%emt 0:00:00]} Bg7 {[%emt 0:00:01]} 3. Nc3 {[%emt 0:00:00]} d6 {[%emt 0:00:05]} 4. e4 {[%emt 0:00:03]} Nc6 {[%emt 0:00:07]} 5. Nge2 {[%emt 0:02:09]} e5 {[%emt 0:00:29]} 6. d5 {[%emt 0:00:33]} Nce7 {[%emt 0:00:01]} 7. Ng3 {[%emt 0:00:26]} h5 {[%emt 0:00:18]} 8. Be2 {[%emt 0:00:01]} h4 {[%emt 0:00:21]} 9. Nf1 f5 10. Bg5 {[%emt 0:00:36]} Bf6 {[%emt 0:00:06]} 11. Qd2 {[%emt 0:00:49]} Nxd5 {[%emt 0:00:27]} 12. Bxf6 {[%emt 0:00:41]} Ndxf6 {[%emt 0:00:02]} 13. exf5 {[%emt 0:00:39]} gxf5 {[%emt 0:00:04]} 14. Ne3 {[%emt 0:00:03]} Be6 {[%emt 0:00:35]} 15. Ned5 {[%emt 0:00:16]} c6 {[%emt 0:00:09]} 16. Nxf6+ {[%emt 0:00:47]} Nxf6 {[%emt 0:00:01]} 17. O-O-O {[%emt 0:00:04]} d5 {[%emt 0:01:15]} 18. cxd5 {[%emt 0:01:01]} cxd5 {[%emt 0:00:01]} 19. f4 {[%emt 0:01:21]} e4 {[%emt 0:01:04]} 20. Nb5 {[%emt 0:02:05]} Qb6 {[%emt 0:00:15]} 21. Kb1 {[%emt 0:00:47]} Kf7 {[%emt 0:01:36]} 22. Nd4 {[%emt 0:00:09]} Rag8 {[%emt 0:00:34]} 23. Rc1 {[%emt 0:00:53]} Rc8 {[%emt 0:03:19]} 24. Rcd1 {[%emt 0:00:12]} Rhg8 {[%emt 0:00:10]} 25. Rhg1 {[%emt 0:00:08]} a6 {[%emt 0:00:10]} 26. Qe3 {[%emt 0:00:55]} Qd6 {[%emt 0:00:25]} 27. Qf2 {[%emt 0:00:25]} Rh8 {[%emt 0:00:13]} 28. g4 {[%emt 0:00:59]} hxg3 {[%emt 0:00:02]} 29. hxg3 {[%emt 0:00:03]} Bd7 {[%emt 0:00:23]} 30. Rh1 {[%emt 0:00:16]} Qc5 {[%emt 0:00:14]} 31. Qe3 {[%emt 0:00:10]} Qb4 {[%emt 0:01:13]} 32. Rh4 {[%emt 0:01:00]} Rhg8 {[%emt 0:00:33]} 33. Bh5+ {[%emt 0:01:36]} Ke7 {[%emt 0:00:02]} 34. Be2 {[%emt 0:00:03]} Rg7 {[%emt 0:00:03]} 35. a3 {[%emt 0:00:33]} Qc5 {[%emt 0:00:10]} 36. Rhh1 {[%emt 0:00:08]} Qd6 {[%emt 0:00:22]} 37. Rc1 {[%emt 0:00:07]} Rxc1+ {[%emt 0:00:19]} 38. Rxc1 {[%emt 0:00:01]} Rh7 {[%emt 0:00:02]} 39. Nb3 {[%emt 0:00:25]} Rh2 {[%emt 0:00:16]} 40. Bd1 {[%emt 0:00:20]} d4 {[%emt 0:03:35]} 41. Nxd4 {[%emt 0:00:10]} Nd5 {[%emt 0:00:01]} 42. Qg1 {[%emt 0:00:15]} Rd2 {[%emt 0:00:01]} 43. Nb3 {[%emt 0:00:14]} Rd3 {[%emt 0:00:17]} 44. Nc5 {[%emt 0:00:07]} Re3 {[%emt 0:00:12]} 45. Qh2 {[%emt 0:00:16]} Nf6 {[%emt 0:00:54]} 46. Qf2 {[%emt 0:00:27]} Qd4 {[%emt 0:00:24]} 47. Bb3 {[%emt 0:00:24]} Bb5 {[%emt 0:00:29]} 48. Ka2 {[%emt 0:00:11]} Ng4 {[%emt 0:00:12]} 49. Qg1 {[%emt 0:00:09]} b6 50. Qh1 {[%emt 0:00:11]} bxc5 {[%emt 0:00:37]} 51. Qh7+ {[%emt 0:00:01]} Kd6 {[%emt 0:00:00]} 52. Qa7 {[%emt 0:00:18]} Rxb3 {[%emt 0:00:14]} 53. Qb8+ {[%emt 0:00:07]} Ke7 {[%emt 0:00:03]} 54. Kxb3 {[%emt 0:00:12]} Qd5+ {[%emt 0:00:04]} 55. Kc2 {[%emt 0:00:13]} Qd3# {[%emt 0:00:00]} 0-1

[Event "Kupreichik Memorial Open 2018"]
[Site "Minsk"]
[Date "2018.06.22"]
[Round "6"]
[White "Vashchilov, Sergey"]
[Black "Zagorskii, Artem"]
[Result "0-1"]
[ECO "B40"]
[WhiteElo "2122"]
[BlackElo "1705"]
[Annotator "NA"]
[PlyCount "106"]
[EventDate "2018.06.21"]
[EventCountry "BLR"]
[SourceTitle "playchess.com"]
[Source "ChessBase"]
[SourceQuality "1"]
[TimeControl "900+10"]

1. e4 {[%emt 0:00:00]} c5 {[%emt 0:00:01]} 2. Nf3 {[%emt 0:00:00]} e6 {[%emt 0:00:01]} 3. b3 {[%emt 0:00:00]} Nf6 {[%emt 0:00:06]} 4. Nc3 {[%emt 0:00:02]} d5 {[%emt 0:00:19]} 5. exd5 {[%emt 0:00:01]} exd5 {[%emt 0:00:39]} 6. Bb5+ {[%emt 0:00:02]} Bd7 {[%emt 0:00:28]} 7. Bxd7+ {[%emt 0:00:12]} Nbxd7 {[%emt 0:00:04]} 8. O-O {[%emt 0:00:15]} Be7 {[%emt 0:00:04]} 9. d4 {[%emt 0:00:20]} O-O {[%emt 0:01:16]} 10. Bb2 {[%emt 0:00:37]} Rc8 {[%emt 0:00:14]} 11. h3 {[%emt 0:01:51]} c4 {[%emt 0:00:13]} 12. bxc4 {[%emt 0:01:04]} Rxc4 {[%emt 0:00:12]} 13. Ne5 {[%emt 0:00:08]} Rc8 {[%emt 0:00:17]} 14. Qf3 {[%emt 0:01:46]} Nb6 {[%emt 0:00:54]} 15. Rab1 {[%emt 0:00:42]} Nc4 {[%emt 0:01:28]} 16. Bc1 {[%emt 0:00:02]} Nb6 {[%emt 0:05:49]} 17. a4 {[%emt 0:00:29]} a5 {[%emt 0:00:14]} 18. Rb5 {[%emt 0:00:55]} Qc7 {[%emt 0:00:48]} 19. Bd2 {[%emt 0:02:43]} Bb4 {[%emt 0:01:10]} 20. Rb1 {[%emt 0:00:59]} Nc4 {[%emt 0:02:24]} 21. Bf4 {[%emt 0:02:11]} Na3 {[%emt 0:00:47]} 22. R1xb4 {[%emt 0:03:07]} axb4 {[%emt 0:00:28]} 23. Rc5 {[%emt 0:00:55]} Qd8 {[%emt 0:00:40]} 24. Nxd5 {[%emt 0:00:01]} Rxc5 {[%emt 0:00:16]} 25. Nxf6+ {[%emt 0:00:03]} Qxf6 {[%emt 0:00:01]} 26. dxc5 {[%emt 0:00:35]} Qa6 {[%emt 0:00:25]} 27. Qb3 {[%emt 0:00:11]} Qa5 {[%emt 0:00:10]} 28. Nd7 {[%emt 0:00:12]} Rd8 {[%emt 0:00:05]} 29. Ne5 {[%emt 0:00:01]} Rf8 {[%emt 0:00:03]} 30. Nd3 {[%emt 0:00:15]} Qa6 {[%emt 0:00:22]} 31. Bd6 {[%emt 0:00:01]} Re8 {[%emt 0:00:02]} 32. Ne5 {[%emt 0:00:00]} Re6 {[%emt 0:00:01]} 33. Qxb4 {[%emt 0:00:24]} Nxc2 {[%emt 0:00:02]} 34. Qb2 {[%emt 0:00:01]} Qe2 {[%emt 0:00:32]} 35. Qxb7 {[%emt 0:00:01]} Qe1+ {[%emt 0:00:02]} 36. Kh2 {[%emt 0:00:01]} Rxe5 {[%emt 0:00:01]} 37. Bxe5 {[%emt 0:00:18]} Qxe5+ {[%emt 0:00:01]} 38. g3 {[%emt 0:00:00]} Qxc5 {[%emt 0:00:02]} 39. Qb8+ {[%emt 0:00:42]} Qf8 {[%emt 0:00:01]} 40. Qc7 {[%emt 0:00:13]} Nb4 {[%emt 0:00:11]} 41. Qb7 {[%emt 0:00:09]} h6 {[%emt 0:00:13]} 42. a5 {[%emt 0:00:14]} Qc5 {[%emt 0:00:02]} 43. Qa8+ {[%emt 0:00:01]} Kh7 {[%emt 0:00:04]} 44. Kg1 {[%emt 0:00:17]} Qb5 {[%emt 0:00:27]} 45. Qa7 {[%emt 0:00:13]} f5 {[%emt 0:00:12]} 46. g4 {[%emt 0:00:12]} fxg4 {[%emt 0:00:02]} 47. hxg4 {[%emt 0:00:01]} Nc6 {[%emt 0:00:02]} 48. Qd7 {[%emt 0:00:07]} Qb1+ {[%emt 0:00:04]} 49. Kg2 {[%emt 0:00:08]} Qe4+ {[%emt 0:00:05]} 50. f3 {[%emt 0:00:09]} Qc2+ {[%emt 0:00:03]} 51. Kg3 {[%emt 0:00:04]} Nxa5 {[%emt 0:00:03]} 52. Qd5 {[%emt 0:00:23]} Nc4 {[%emt 0:00:19]} 53. g5 {[%emt 0:00:03]} Ne3 {[%emt 0:00:25]} 0-1

[Event "Kupreichik Memorial Open 2018"]
[Site "Minsk"]
[Date "2018.06.22"]
[Round "6"]
[White "Shaban, Alena"]
[Black "Beliuga, Mikhail"]
[Result "0-1"]
[ECO "A05"]
[WhiteElo "2027"]
[BlackElo "1699"]
[Annotator "NA"]
[PlyCount "68"]
[EventDate "2018.06.21"]
[EventCountry "BLR"]
[SourceTitle "playchess.com"]
[Source "ChessBase"]
[SourceQuality "1"]
[TimeControl "900+10"]

1. Nf3 {[%emt 0:00:00]} Nf6 {[%emt 0:00:01]} 2. g3 {[%emt 0:00:00]} b6 {[%emt 0:00:19]} 3. Bg2 {[%emt 0:00:00]} Bb7 {[%emt 0:00:01]} 4. O-O {[%emt 0:00:00]} e6 {[%emt 0:00:03]} 5. d3 {[%emt 0:00:00]} d5 {[%emt 0:00:30]} 6. Nbd2 {[%emt 0:00:00]} Be7 {[%emt 0:00:31]} 7. c3 {[%emt 0:00:05]} c5 {[%emt 0:00:31]} 8. Qc2 {[%emt 0:00:03]} Qc7 {[%emt 0:00:45]} 9. e4 {[%emt 0:00:03]} Nbd7 {[%emt 0:00:03]} 10. Re1 {[%emt 0:00:31]} dxe4 {[%emt 0:01:54]} 11. dxe4 {[%emt 0:00:03]} O-O {[%emt 0:00:28]} 12. c4 {[%emt 0:02:07]} Rfd8 {[%emt 0:01:22]} 13. e5 {[%emt 0:00:58]} Ng4 {[%emt 0:01:12]} 14. Qc3 {[%emt 0:00:04]} Nh6 {[%emt 0:02:47]} 15. Ne4 {[%emt 0:00:40]} Nf5 {[%emt 0:00:03]} 16. Bf4 {[%emt 0:00:07]} Nf8 {[%emt 0:00:36]} 17. g4 {[%emt 0:02:09]} Ng6 {[%emt 0:05:55]} 18. Bg3 {[%emt 0:03:20]} Nxg3 {[%emt 0:00:05]} 19. hxg3 {[%emt 0:00:58]} Rd7 {[%emt 0:00:00]} 20. Re2 {[%emt 0:02:19]} Rad8 {[%emt 0:00:05]} 21. Rae1 {[%emt 0:00:01]} Rd3 {[%emt 0:00:16]} 22. Qc2 {[%emt 0:00:25]} Nxe5 {[%emt 0:00:33]} 23. Nxe5 {[%emt 0:00:04]} Qxe5 {[%emt 0:00:01]} 24. Nxc5 {[%emt 0:03:02]} Qxc5 {[%emt 0:00:08]} 25. Bxb7 {[%emt 0:00:03]} Rxg3+ {[%emt 0:00:06]} 26. Kf1 {[%emt 0:01:14]} Rxg4 {[%emt 0:00:22]} 27. b3 {[%emt 0:00:16]} Qg5 {[%emt 0:00:05]} 28. Re3 {[%emt 0:00:10]} Bc5 {[%emt 0:00:12]} 29. Rh3 {[%emt 0:00:52]} Rg1+ {[%emt 0:00:07]} 30. Ke2 {[%emt 0:00:01]} Qg4+ {[%emt 0:00:15]} 31. Rf3 {[%emt 0:00:01]} Rg2 {[%emt 0:00:25]} 32. Rf1 {[%emt 0:00:14]} g6 {[%emt 0:00:22]} 33. Ke1 {[%emt 0:00:05]} Qd4 {[%emt 0:00:15]} 34. Re3 {[%emt 0:00:14]} Rxf2 {[%emt 0:00:09]} 0-1

[Event "Kupreichik Memorial Open 2018"]
[Site "Minsk"]
[Date "2018.06.22"]
[Round "6"]
[White "Naumovich, Yaroslav"]
[Black "Cherepov, Alexej"]
[Result "0-1"]
[ECO "D02"]
[WhiteElo "1959"]
[BlackElo "2234"]
[Annotator "NA"]
[PlyCount "166"]
[EventDate "2018.06.21"]
[EventCountry "BLR"]
[SourceTitle "playchess.com"]
[Source "ChessBase"]
[SourceQuality "1"]
[TimeControl "900+10"]

1. Nf3 {[%emt 0:00:00]} Nf6 {[%emt 0:00:04]} 2. d4 {[%emt 0:00:00]} d5 {[%emt 0:00:08]} 3. Bf4 {[%emt 0:00:00]} c5 {[%emt 0:00:02]} 4. e3 {[%emt 0:00:01]} Nc6 {[%emt 0:00:02]} 5. c3 {[%emt 0:00:04]} Qb6 {[%emt 0:00:08]} 6. Qb3 {[%emt 0:00:26]} c4 {[%emt 0:00:07]} 7. Qxb6 {[%emt 0:00:43]} axb6 {[%emt 0:00:03]} 8. Nbd2 {[%emt 0:00:14]} b5 {[%emt 0:00:05]} 9. Be2 {[%emt 0:00:25]} Bf5 {[%emt 0:00:51]} 10. O-O {[%emt 0:00:05]} b4 {[%emt 0:00:17]} 11. Nh4 {[%emt 0:00:49]} Bd7 {[%emt 0:00:11]} 12. e4 {[%emt 0:02:11]} e6 {[%emt 0:00:11]} 13. e5 {[%emt 0:01:36]} Ng8 {[%emt 0:00:11]} 14. Be3 {[%emt 0:00:02]} Be7 {[%emt 0:01:27]} 15. Nhf3 {[%emt 0:00:19]} Bd8 {[%emt 0:00:29]} 16. Rfc1 {[%emt 0:02:30]} bxc3 {[%emt 0:00:14]} 17. bxc3 {[%emt 0:00:04]} Nge7 {[%emt 0:00:13]} 18. g4 {[%emt 0:01:05]} O-O {[%emt 0:01:32]} 19. Ne1 {[%emt 0:00:41]} Bc7 {[%emt 0:00:21]} 20. f4 {[%emt 0:00:36]} Ra3 {[%emt 0:00:17]} 21. Nb1 {[%emt 0:00:15]} Ra6 {[%emt 0:00:15]} 22. a3 {[%emt 0:02:22]} Rfa8 {[%emt 0:00:14]} 23. Ra2 {[%emt 0:00:12]} Na7 {[%emt 0:01:18]} 24. Rb2 {[%emt 0:00:46]} Nb5 {[%emt 0:00:58]} 25. Nc2 {[%emt 0:00:01]} Nc8 {[%emt 0:00:16]} 26. Bd2 {[%emt 0:01:16]} Bd8 {[%emt 0:00:36]} 27. Rf1 {[%emt 0:00:45]} Be7 {[%emt 0:00:46]} 28. Ra2 {[%emt 0:00:01]} g6 {[%emt 0:01:27]} 29. Bc1 {[%emt 0:00:29]} Nb6 {[%emt 0:00:27]} 30. Kg2 {[%emt 0:00:34]} R6a7 {[%emt 0:00:42]} 31. Kg3 {[%emt 0:00:32]} Nc7 {[%emt 0:00:58]} 32. h4 {[%emt 0:00:21]} Ba4 {[%emt 0:00:23]} 33. Nb4 {[%emt 0:00:49]} Bb3 {[%emt 0:00:13]} 34. Rb2 {[%emt 0:00:03]} Ne8 {[%emt 0:01:07]} 35. Bd1 {[%emt 0:00:15]} Bxd1 {[%emt 0:01:14]} 36. Rxd1 {[%emt 0:00:01]} Ng7 {[%emt 0:00:01]} 37. Rf1 {[%emt 0:00:20]} h5 {[%emt 0:00:03]} 38. Rh2 {[%emt 0:00:15]} hxg4 {[%emt 0:00:13]} 39. Kxg4 {[%emt 0:00:01]} Kf8 {[%emt 0:00:52]} 40. Rg1 {[%emt 0:00:10]} Ke8 {[%emt 0:00:04]} 41. Kf3 {[%emt 0:00:16]} Kd7 {[%emt 0:00:09]} 42. Rgg2 {[%emt 0:00:08]} Rh8 {[%emt 0:00:26]} 43. Kg4 {[%emt 0:00:12]} Raa8 {[%emt 0:00:18]} 44. Bd2 {[%emt 0:00:11]} Nf5 {[%emt 0:00:35]} 45. Rg1 {[%emt 0:00:13]} Rh5 {[%emt 0:00:37]} 46. Be1 {[%emt 0:00:05]} Rah8 {[%emt 0:00:23]} 47. Rgh1 {[%emt 0:00:01]} Na4 {[%emt 0:00:08]} 48. Bg3 {[%emt 0:00:23]} Kc7 {[%emt 0:00:20]} 49. Be1 {[%emt 0:00:02]} Kb6 {[%emt 0:00:06]} 50. Bg3 {[%emt 0:00:06]} Kb5 {[%emt 0:00:04]} 51. Be1 {[%emt 0:00:11]} Nb6 {[%emt 0:00:08]} 52. Na2 {[%emt 0:00:21]} Ka4 {[%emt 0:00:13]} 53. Nb4 {[%emt 0:00:01]} Ne3+ {[%emt 0:00:24]} 54. Kf3 {[%emt 0:00:06]} Nf5 {[%emt 0:00:11]} 55. Kg4 {[%emt 0:00:01]} Nc8 {[%emt 0:00:05]} 56. Bg3 {[%emt 0:00:08]} Na7 {[%emt 0:00:03]} 57. Be1 {[%emt 0:00:28]} Nb5 {[%emt 0:00:03]} 58. Bg3 {[%emt 0:00:01]} Kb3 {[%emt 0:00:32]} 59. Be1 {[%emt 0:00:18]} Ra8 {[%emt 0:00:28]} 60. Bd2 {[%emt 0:00:15]} Bxb4 {[%emt 0:00:11]} 61. axb4 {[%emt 0:00:13]} Ra1 {[%emt 0:00:05]} 62. Kf3 {[%emt 0:00:08]} Ra2 {[%emt 0:00:20]} 63. Be1 {[%emt 0:00:09]} Rb2 {[%emt 0:00:24]} 64. Rxb2+ {[%emt 0:00:10]} Kxb2 {[%emt 0:00:01]} 65. Bd2 {[%emt 0:00:13]} Nxh4+ {[%emt 0:00:10]} 66. Kg4 {[%emt 0:00:10]} Nf5 {[%emt 0:00:05]} 67. Re1 {[%emt 0:00:10]} Rh2 {[%emt 0:00:04]} 68. Kg5 {[%emt 0:00:05]} Kc2 {[%emt 0:00:08]} 69. Kf6 {[%emt 0:00:02]} Rxd2 {[%emt 0:00:09]} 70. Nxd2 {[%emt 0:00:03]} Kxd2 {[%emt 0:00:01]} 71. Rg1 {[%emt 0:00:04]} Nxc3 {[%emt 0:00:03]} 72. Kxf7 {[%emt 0:00:02]} Nxd4 {[%emt 0:00:02]} 73. Kxg6 {[%emt 0:00:09]} Nce2 {[%emt 0:00:04]} 74. Ra1 {[%emt 0:00:14]} Nxf4+ {[%emt 0:00:04]} 75. Kf6 {[%emt 0:00:01]} Nd3 {[%emt 0:00:06]} 76. Ra2+ {[%emt 0:00:07]} Ke3 {[%emt 0:00:09]} 77. b5 {[%emt 0:00:00]} c3 {[%emt 0:00:04]} 78. b6 {[%emt 0:00:07]} c2 {[%emt 0:00:03]} 79. Rxc2 {[%emt 0:00:01]} Nxc2 {[%emt 0:00:03]} 80. Kxe6 {[%emt 0:00:01]} Nxe5 {[%emt 0:00:19]} 81. Kxd5 {[%emt 0:01:02]} Nc6 {[%emt 0:00:08]} 82. Kd6 {[%emt 0:00:22]} Kd4 {[%emt 0:00:05]} 83. Kc7 {[%emt 0:00:10]} Na5 {[%emt 0:00:01]} 0-1

[Event "Kupreichik Memorial Open 2018"]
[Site "Minsk"]
[Date "2018.06.22"]
[Round "6"]
[White "Uzlavataya, Anhelina"]
[Black "Osmolny, Vladimir I"]
[Result "0-1"]
[ECO "A06"]
[WhiteElo "1925"]
[BlackElo "2163"]
[Annotator "NA"]
[PlyCount "62"]
[EventDate "2018.06.21"]
[EventCountry "BLR"]
[SourceTitle "playchess.com"]
[Source "ChessBase"]
[SourceQuality "1"]
[TimeControl "900+10"]

1. Nf3 {[%emt 0:00:00]} d5 {[%emt 0:00:03]} 2. g3 {[%emt 0:00:00]} Nc6 {[%emt 0:00:36]} 3. d4 {[%emt 0:00:00]} Bf5 {[%emt 0:00:05]} 4. Bg2 {[%emt 0:00:10]} Nb4 {[%emt 0:00:09]} 5. Na3 {[%emt 0:00:04]} e6 {[%emt 0:00:24]} 6. O-O {[%emt 0:01:06]} Be7 {[%emt 0:00:03]} 7. c4 {[%emt 0:00:39]} c6 {[%emt 0:01:23]} 8. Bd2 {[%emt 0:01:31]} Nf6 {[%emt 0:01:10]} 9. Qb3 {[%emt 0:00:53]} a5 {[%emt 0:00:31]} 10. c5 {[%emt 0:01:32]} b6 {[%emt 0:04:23]} 11. Bxb4 {[%emt 0:00:24]} axb4 {[%emt 0:00:01]} 12. Qxb4 {[%emt 0:00:01]} Nd7 {[%emt 0:01:49]} 13. Rfc1 {[%emt 0:01:13]} O-O {[%emt 0:00:30]} 14. Nd2 {[%emt 0:02:26]} Rb8 {[%emt 0:00:54]} 15. Qa4 {[%emt 0:00:45]} bxc5 {[%emt 0:00:39]} 16. Qxc6 {[%emt 0:01:55]} Rb6 {[%emt 0:00:49]} 17. Qa4 {[%emt 0:00:09]} Rxb2 {[%emt 0:00:03]} 18. e4 {[%emt 0:01:09]} dxe4 {[%emt 0:01:20]} 19. Nxe4 {[%emt 0:00:09]} Rb4 {[%emt 0:00:01]} 20. Qc6 {[%emt 0:00:15]} cxd4 {[%emt 0:00:17]} 21. Nb5 {[%emt 0:00:28]} Ne5 {[%emt 0:00:58]} 22. Qa6 {[%emt 0:00:37]} d3 {[%emt 0:00:34]} 23. Nbc3 {[%emt 0:00:31]} Qd4 {[%emt 0:00:19]} 24. Rd1 {[%emt 0:00:32]} Rb2 {[%emt 0:00:12]} 25. Qa4 {[%emt 0:00:49]} Rb4 {[%emt 0:00:07]} 26. Qa6 {[%emt 0:00:01]} Rfb8 {[%emt 0:00:06]} 27. Rac1 {[%emt 0:00:14]} h5 {[%emt 0:00:02]} 28. a3 {[%emt 0:00:10]} Rb2 {[%emt 0:00:07]} 29. Qa4 {[%emt 0:00:04]} Qb6 {[%emt 0:00:06]} 30. Nd2 {[%emt 0:00:12]} Bg5 {[%emt 0:00:11]} 31. Ncb1 {[%emt 0:00:37]} Ng4 {[%emt 0:00:08]} 0-1

[Event "Kupreichik Memorial Open 2018"]
[Site "Minsk"]
[Date "2018.06.22"]
[Round "6"]
[White "Sadovnikov, Konstantin"]
[Black "Rakhmangulova, Anastasiya"]
[Result "1-0"]
[ECO "B23"]
[WhiteElo "1908"]
[BlackElo "2244"]
[Annotator "NA"]
[PlyCount "97"]
[EventDate "2018.06.21"]
[EventCountry "BLR"]
[SourceTitle "playchess.com"]
[Source "ChessBase"]
[SourceQuality "1"]
[TimeControl "900+10"]

1. e4 {[%emt 0:00:00]} c5 {[%emt 0:00:01]} 2. Nc3 {[%emt 0:00:00]} a6 {[%emt 0:00:01]} 3. g3 {[%emt 0:00:00]} b5 {[%emt 0:00:00]} 4. Bg2 Bb7 5. d3 {[%emt 0:00:00]} e6 {[%emt 0:00:02]} 6. f4 {[%emt 0:00:00]} d5 {[%emt 0:00:02]} 7. e5 {[%emt 0:00:05]} h5 {[%emt 0:00:26]} 8. h3 {[%emt 0:00:03]} Nc6 {[%emt 0:00:17]} 9. Nf3 {[%emt 0:00:02]} Nh6 {[%emt 0:00:04]} 10. O-O {[%emt 0:00:02]} Nf5 {[%emt 0:00:06]} 11. Kh2 {[%emt 0:00:10]} Be7 {[%emt 0:01:28]} 12. Ne2 {[%emt 0:00:08]} d4 {[%emt 0:01:08]} 13. a3 {[%emt 0:01:33]} Qc7 {[%emt 0:00:24]} 14. Qe1 {[%emt 0:00:15]} O-O-O {[%emt 0:00:41]} 15. Bd2 {[%emt 0:01:57]} f6 {[%emt 0:02:53]} 16. Nc1 {[%emt 0:00:56]} Rde8 {[%emt 0:02:23]} 17. Nb3 {[%emt 0:00:20]} fxe5 {[%emt 0:01:57]} 18. Nxe5 {[%emt 0:00:07]} Nxe5 {[%emt 0:00:20]} 19. Qxe5 {[%emt 0:00:31]} Qxe5 {[%emt 0:00:50]} 20. fxe5 {[%emt 0:00:01]} Bxg2 {[%emt 0:00:04]} 21. Kxg2 {[%emt 0:00:01]} Rd8 {[%emt 0:01:30]} 22. a4 {[%emt 0:01:55]} b4 {[%emt 0:00:33]} 23. Na5 {[%emt 0:00:14]} Kc7 {[%emt 0:00:23]} 24. Nc4 {[%emt 0:00:05]} g5 {[%emt 0:00:34]} 25. Rae1 {[%emt 0:00:43]} Rdg8 {[%emt 0:01:53]} 26. b3 {[%emt 0:01:13]} g4 {[%emt 0:00:26]} 27. h4 {[%emt 0:00:07]} Bxh4 {[%emt 0:00:51]} 28. gxh4 {[%emt 0:00:01]} Nxh4+ {[%emt 0:00:01]} 29. Kg3 {[%emt 0:00:13]} Nf5+ {[%emt 0:00:06]} 30. Rxf5 {[%emt 0:02:42]} exf5 {[%emt 0:00:01]} 31. Bf4 {[%emt 0:00:45]} h4+ {[%emt 0:00:01]} 32. Kg2 {[%emt 0:00:01]} g3 {[%emt 0:00:23]} 33. e6+ {[%emt 0:00:41]} Kc6 {[%emt 0:00:31]} 34. Kh3 {[%emt 0:00:51]} Re8 {[%emt 0:00:16]} 35. Nd6 {[%emt 0:03:17]} Reg8 {[%emt 0:00:11]} 36. e7 {[%emt 0:01:13]} Kd7 {[%emt 0:00:02]} 37. e8=Q+ {[%emt 0:00:15]} Rxe8 {[%emt 0:00:01]} 38. Rxe8 {[%emt 0:00:07]} Rxe8 {[%emt 0:00:21]} 39. Nxe8 Kxe8 {[%emt 0:00:01]} 40. Kxh4 {[%emt 0:00:04]} g2 {[%emt 0:00:00]} 41. Bh2 {[%emt 0:00:01]} Kd7 {[%emt 0:00:28]} 42. Kg5 {[%emt 0:00:01]} Ke6 {[%emt 0:00:02]} 43. Kf4 {[%emt 0:00:02]} Kf6 {[%emt 0:00:10]} 44. Kf3 {[%emt 0:00:10]} Ke6 {[%emt 0:00:23]} 45. Kxg2 {[%emt 0:00:03]} Kd5 {[%emt 0:00:10]} 46. Kf3 {[%emt 0:00:01]} Ke6 {[%emt 0:00:04]} 47. Bc7 {[%emt 0:00:04]} Kd7 {[%emt 0:00:04]} 48. Bb8 {[%emt 0:00:02]} Ke6 {[%emt 0:00:03]} 49. Kf4 {[%emt 0:00:01]} 1-0

[Event "Kupreichik Memorial Open 2018"]
[Site "Minsk"]
[Date "2018.06.22"]
[Round "6"]
[White "Kirilin, Dmitrij"]
[Black "Terletsky, Oleg"]
[Result "1-0"]
[ECO "A48"]
[WhiteElo "1898"]
[BlackElo "2268"]
[Annotator "NA"]
[PlyCount "57"]
[EventDate "2018.06.21"]
[EventCountry "BLR"]
[SourceTitle "playchess.com"]
[Source "ChessBase"]
[SourceQuality "1"]
[TimeControl "900+10"]

1. d4 {[%emt 0:00:00]} Nf6 {[%emt 0:00:01]} 2. Nf3 {[%emt 0:00:00]} g6 {[%emt 0:00:01]} 3. c4 {[%emt 0:00:00]} Bg7 {[%emt 0:00:01]} 4. Nc3 {[%emt 0:00:00]} O-O {[%emt 0:00:02]} 5. Bg5 {[%emt 0:00:00]} h6 {[%emt 0:00:04]} 6. Bh4 {[%emt 0:00:01]} c5 {[%emt 0:00:06]} 7. d5 {[%emt 0:00:01]} b5 {[%emt 0:00:37]} 8. cxb5 {[%emt 0:00:26]} Qa5 {[%emt 0:01:51]} 9. Qd2 {[%emt 0:00:35]} a6 {[%emt 0:00:42]} 10. e3 {[%emt 0:01:17]} axb5 {[%emt 0:01:15]} 11. Bxb5 {[%emt 0:00:08]} g5 {[%emt 0:03:43]} 12. Bg3 {[%emt 0:00:17]} Ne4 {[%emt 0:02:19]} 13. Nxe4 {[%emt 0:00:50]} Qxb5 {[%emt 0:00:02]} 14. Nc3 {[%emt 0:00:43]} Bxc3 {[%emt 0:00:26]} 15. bxc3 {[%emt 0:00:44]} Ba6 {[%emt 0:00:23]} 16. h4 {[%emt 0:01:07]} g4 {[%emt 0:01:10]} 17. Ne5 {[%emt 0:00:06]} d6 {[%emt 0:00:21]} 18. c4 {[%emt 0:01:10]} Qa4 {[%emt 0:00:36]} 19. Nxg4 {[%emt 0:01:09]} f5 {[%emt 0:00:01]} 20. Nxh6+ {[%emt 0:00:32]} Kg7 {[%emt 0:00:12]} 21. Bf4 {[%emt 0:00:15]} Qxc4 {[%emt 0:00:34]} 22. f3 {[%emt 0:00:36]} Bb7 {[%emt 0:00:52]} 23. Qb2+ {[%emt 0:00:06]} Rf6 {[%emt 0:01:59]} 24. Qxb7 {[%emt 0:00:16]} Qc3+ {[%emt 0:00:10]} 25. Kf2 {[%emt 0:00:14]} Qd2+ {[%emt 0:00:09]} 26. Kg3 {[%emt 0:00:14]} Rg6+ {[%emt 0:00:14]} 27. Bg5 {[%emt 0:00:03]} Kh8 {[%emt 0:00:54]} 28. Qxa8 {[%emt 0:00:21]} Rg8 {[%emt 0:00:01]} 29. Nxg8 {[%emt 0:00:06]} 1-0

[Event "Kupreichik Memorial Open 2018"]
[Site "Minsk"]
[Date "2018.06.22"]
[Round "6"]
[White "Tyurin, Artem"]
[Black "Yagutian, Mariya"]
[Result "1-0"]
[ECO "C07"]
[WhiteElo "1855"]
[BlackElo "1506"]
[Annotator "NA"]
[PlyCount "61"]
[EventDate "2018.06.21"]
[EventCountry "BLR"]
[SourceTitle "playchess.com"]
[Source "ChessBase"]
[SourceQuality "1"]
[TimeControl "900+10"]

1. e4 {[%emt 0:00:00]} e6 {[%emt 0:00:04]} 2. d4 {[%emt 0:00:00]} d5 {[%emt 0:00:04]} 3. Nd2 {[%emt 0:00:00]} c5 {[%emt 0:00:07]} 4. Ngf3 {[%emt 0:00:00]} cxd4 {[%emt 0:00:31]} 5. Nxd4 {[%emt 0:00:01]} Nc6 {[%emt 0:00:06]} 6. c3 {[%emt 0:00:28]} Nf6 {[%emt 0:00:18]} 7. exd5 {[%emt 0:00:08]} Nxd4 {[%emt 0:00:54]} 8. cxd4 {[%emt 0:00:03]} Nxd5 {[%emt 0:00:13]} 9. Bd3 {[%emt 0:00:34]} Nf4 {[%emt 0:00:23]} 10. Bb5+ {[%emt 0:00:31]} Bd7 {[%emt 0:00:16]} 11. Bxd7+ {[%emt 0:00:01]} Qxd7 {[%emt 0:00:07]} 12. Qf3 {[%emt 0:00:12]} Qxd4 {[%emt 0:01:54]} 13. O-O {[%emt 0:00:02]} Nd5 {[%emt 0:00:46]} 14. Ne4 {[%emt 0:00:24]} Be7 {[%emt 0:01:19]} 15. Be3 {[%emt 0:01:09]} Qe5 {[%emt 0:03:07]} 16. Rfd1 {[%emt 0:02:17]} O-O {[%emt 0:01:24]} 17. Bd4 {[%emt 0:00:01]} Qf4 {[%emt 0:00:47]} 18. Qe2 {[%emt 0:00:02]} a6 {[%emt 0:01:43]} 19. g3 {[%emt 0:00:07]} Qh6 {[%emt 0:00:29]} 20. f4 {[%emt 0:00:27]} Rac8 {[%emt 0:01:54]} 21. Rac1 {[%emt 0:00:11]} Qg6 {[%emt 0:00:40]} 22. Be5 {[%emt 0:00:36]} f6 {[%emt 0:00:52]} 23. Bd6 {[%emt 0:00:06]} Bxd6 {[%emt 0:00:39]} 24. Nxd6 {[%emt 0:00:02]} Nxf4 {[%emt 0:00:03]} 25. Qe3 {[%emt 0:01:41]} Rxc1 {[%emt 0:00:13]} 26. Rxc1 {[%emt 0:00:04]} e5 {[%emt 0:00:03]} 27. Qb3+ {[%emt 0:00:14]} Kh8 {[%emt 0:00:04]} 28. Nf7+ {[%emt 0:00:11]} Qxf7 {[%emt 0:00:31]} 29. Qxf7 {[%emt 0:00:03]} Ne2+ {[%emt 0:00:11]} 30. Kf2 {[%emt 0:00:04]} Rd8 {[%emt 0:00:12]} 31. Kxe2 {[%emt 0:00:04]} 1-0